Cogmind - Beta 15 @@@ ROGUE MODE // 2025.08.04 @ 20:02:20 Player: Btuck Result: Destroyed by Striker with Plasma Lance Performance ------------- Evolutions (9) 4500 Regions Visited (12) 2400 Robots Destroyed (41) 205 Value Destroyed (1320) 1320 Prototype IDs (54) 1080 Alien Tech Used (2) 400 Bonus (4006) 4006 TOTAL SCORE: 13911 Bonus ------- Follower Combat Kills 206 Registered with UFD 300 Used Core Reset Matrix 3000 Scanned by Researcher 500 Cogmind --------- Core Integrity 0/1600 Matter 264/300 Energy 17/100 System Corruption 2% Temperature Cool (0) Movement Core (150) Ox2 Location -1/Command Parts ------- > --- POWER (2) -------- (None) > --- PROPULSION (9) --- (None) > --- UTILITY (11) ----- Experimental Optical Array Advanced Sensor Array Advanced Signal Interpreter Advanced Signal Interpreter Advanced Melee Analysis Suite > --- WEAPON (3) ------- Enhanced Force Lance > --- INVENTORY (5) ---- Micro Antimatter Reactor Advanced Coolant Injector Cooled Phase Cannon Peak State ------------ > --- POWER ------------ Neutrino Core Compact Particle Reactor > --- PROPULSION ------- Xenon Bombardment Thruster Biomechanical Wings Biomechanical Wings Biomechanical Wings Biomechanical Wings Q-thruster Improved Diametric Drive Impulse Thruster Array > --- UTILITY ---------- Experimental Optical Array Advanced Sensor Array Advanced Signal Interpreter Advanced Terrain Scanner Advanced Targeting Computer Layered Light Armor Plating Hacking Suite System Shield A0-MCA's Component Scanner > --- WEAPON ----------- Core Stripper > --- INVENTORY -------- Micro Antimatter Reactor Light Quantum Reactor Xenon Bombardment Thruster Advanced Signal Interpreter [Rating: 151] Favorites ----------- Power Neutrino Core Engine Light Ion Engine Power Core Neutrino Core Reactor Compact Particle Reactor Propulsion Biomechanical Wings Treads Light Treads Leg Titanium Leg Flight Unit Biomechanical Wings Utility Medium Storage Unit Device Advanced Terrain Scanner Storage Medium Storage Unit Processor A0-MCA's Component Scanner Hackware System Shield Protection Layered Light Armor Plating Weapon Grenade Launcher Energy Gun Small Laser Energy Cannon Cooled Phase Cannon Ballistic Gun Light Assault Rifle Launcher Grenade Launcher Special Weapon Junk Cannon Impact Weapon Core Stripper Slashing Weapon Chainsword Piercing Weapon Lance Build | -11 -10 -10 -7 -7 -5 -4 -3 -3 -2 -2 -1 -1 ------- Run | Yrd Mat Sub Rec Scr Fac Fac Res Qua Res Tes Acc Com Slots Evolved 18 | . . . . . 10 2 2 . 2 . 2 . Power 1 | . . . . . 1 . . . . . . . Propulsion 7 | . . . . . 3 1 2 . 1 . . . Utility 9 | . . . . . 5 1 . . 1 . 2 . Weapon 1 | . . . . . 1 . . . . . . . Parts Attached 78 | 8 1 2 2 4 11 12 6 4 7 8 7 6 Power 8 | 1 . 1 . . 1 . 1 . 1 1 2 . Engine 2 | 1 . 1 . . . . . . . . . . Core 2 | . . . . . 1 . . . 1 . . . Reactor 4 | . . . . . . . 1 . . 1 2 . Propulsion 28 | 2 . . 2 2 3 9 2 3 3 . . 2 Treads 2 | 2 . . . . . . . . . . . . Leg 7 | . . . 2 2 3 . . . . . . . Wheel . | . . . . . . . . . . . . . Hover . | . . . . . . . . . . . . . Flight 19 | . . . . . . 9 2 3 3 . . 2 Utility 26 | 2 1 . . 1 4 2 3 . 3 3 3 4 Device 9 | 1 . . . . 2 1 1 . . 1 1 2 Storage 2 | 1 1 . . . . . . . . . . . Processor 9 | . . . . 1 . 1 2 . 1 . 2 2 Hackware 3 | . . . . . . . . . 2 1 . . Protection 3 | . . . . . 2 . . . . 1 . . Artifact . | . . . . . . . . . . . . . Weapon 16 | 3 . 1 . 1 3 1 . 1 . 4 2 . Energy Gun 2 | 2 . . . . . . . . . . . . Energy Cannon 1 | . . . . . . . . . . 1 . . Ballistic Gun 3 | 1 . . . 1 1 . . . . . . . Ballistic Cannon . | . . . . . . . . . . . . . Launcher 2 | . . 1 . . 1 . . . . . . . Special Weapon 2 | . . . . . 1 . . . . 1 . . Impact Weapon 2 | . . . . . . . . 1 . 1 . . Slashing Weapon 1 | . . . . . . 1 . . . . . . Piercing Weapon 3 | . . . . . . . . . . 1 2 . Special Melee Weapon . | . . . . . . . . . . . . . Unidentified Prototypes 2 | . . . . . . . . 1 1 . . . Parts Lost 39 | . . 5 . . . . . 1 14 1 15 3 Power 7 | . . 2 . . . . . . 3 1 1 . Propulsion 15 | . . 1 . . . . . 1 7 . 4 2 Utility 14 | . . 1 . . . . . . 3 . 9 1 Weapon 3 | . . 1 . . . . . . 1 . 1 . Highest Loss Streak 15 | . . 5 . . . . . 1 10 1 15 3 To Critical Strikes . | . . . . . . . . . . . . . Average Backups 7 | 2 7 7 8 9 7 10 8 9 5 3 4 3 Power . | . 1 . . . 1 1 1 1 1 1 . 1 Propulsion 3 | 1 4 5 5 4 1 5 3 4 1 . . . Utility 1 | . . . . . . 2 4 3 2 1 1 1 Weapon 2 | . 1 2 3 4 3 1 . . . 1 2 1 Tool/Special . | . . . . . . . . . . . . . Unused Backups 10 | . . . . 4 3 . . 1 . . 1 1 Power 1 | . . . . . 1 . . . . . . . Propulsion 4 | . . . . 2 1 . . 1 . . . . Utility 1 | . . . . . . . . . . . . 1 Weapon 4 | . . . . 2 1 . . . . . 1 . Tool/Special . | . . . . . . . . . . . . . Average Slot Usage (%) 72 | . 100 85 59 76 68 75 85 89 80 60 60 14 Engine 1 | . 14 10 . . . . . . . . . . Core 1 | . . . . . 4 5 4 4 3 . . . Reactor 1 | . . . . . . . 3 4 3 3 3 . Treads 4 | . 28 24 9 . . . . . . . . . Leg 12 | . . . 9 28 28 22 . . . . . . Flight 8 | . . . . . . 3 37 38 34 16 13 1 Device 4 | . 14 9 . . 7 10 10 8 7 2 2 1 Storage 8 | . 14 14 14 14 5 5 4 4 1 . . . Processor 7 | . . . . 5 5 7 15 19 17 17 21 9 Hackware 1 | . . . . . . . . . 2 12 10 . Protection 2 | . . . . . 2 9 2 4 3 1 3 . Energy Gun 1 | . 14 11 . . . . . . . . . . Ballistic Gun 6 | . 14 7 11 14 3 . . . . . . . Launcher 6 | . . 7 14 14 3 1 . . . . . . Peak Build Rating 151 | 7 7 7 6 23 71 97 108 146 151 92 96 39 Average Rating 45 | 5 7 5 4 14 58 74 104 115 129 81 80 26 On Entrance 43 | . 7 7 3 6 23 70 81 108 112 49 73 23 Naked Turns . | . . . . . . . . . . . . . Heaviest Build 58 | 11 16 18 14 16 58 58 48 51 52 26 23 11 Greatest Support 81 | 40 40 40 20 34 81 81 49 51 61 24 24 14 Greatest Overweight (x) 8 | . . . . . . 8 . 1 1 1 3 3 Average Overweight (x) . | . . . . . . . . . . . . . Largest Inventory Capacity 10 | 8 10 10 10 10 10 10 10 10 10 5 5 5 Average Capacity 8 | 7 8 10 10 10 10 10 10 10 7 5 5 5 Most Carried 10 | 4 8 8 10 10 10 10 10 10 9 5 5 4 Average Carried 7 | 2 7 7 8 9 7 9 8 9 5 3 4 3 Final Capacity 10 | 8 10 10 10 10 10 10 10 10 5 5 5 5 Final Carried 10 | 4 8 7 9 10 10 10 9 10 5 5 3 3 Class Distribution -------------------- 63% | Mutant 13% | Scout 10% | Bomber 5% | Hacker-Scout 4% | Hacker-Sprinter Dominant Class ---------------- Mutant | -10/Materials Mutant | -10/Subcaves Mutant | -7/Recycling Mutant | -7/Scraptown Bomber | -5/Factory Mutant | -4/Factory Scout | -3/Research Scout | -3/Quarantine Scout | -2/Research Hacker-Sprinter | -2/Testing Hacker-Scout | -1/Access Mutant | -1/Command Resources | -11 -10 -10 -7 -7 -5 -4 -3 -3 -2 -2 -1 -1 ----------- Run | Yrd Mat Sub Rec Scr Fac Fac Res Qua Res Tes Acc Com Matter Collected 1318 | 292 20 51 245 40 128 . 42 14 345 100 4 37 Remotely . | . . . . . . . . . . . . . Salvage Created 1457 | 156 141 102 . . 362 . 42 54 362 238 . . Parts 55 | 11 9 9 . . 9 . 2 1 3 11 . . Haulers Intercepted 3 | . . . . . . . . . 2 1 . . Recyclers Shooed 1 | . . . . . . . 1 . . . . . Parts Field Recycled . | . . . . . . . . . . . . . Retrieved Matter . | . . . . . . . . . . . . . Parts Self-Destructed 8 | . . 8 . . . . . . . . . . Prevented . | . . . . . . . . . . . . . Kills | -11 -10 -10 -7 -7 -5 -4 -3 -3 -2 -2 -1 -1 ------- Run | Yrd Mat Sub Rec Scr Fac Fac Res Qua Res Tes Acc Com Combat Hostiles Destroyed 22 | . 5 6 . . 10 . . . 1 . . . Guns 6 | . 5 1 . . . . . . . . . . Cannons 2 | . . . . . 2 . . . . . . . AOE 10 | . . 5 . . 5 . . . . . . . Classes Destroyed 13 | 2 2 2 . . 2 . 1 2 2 . . . Worker 2 | . . . . . . . 2 . . . . . Tunneler 4 | 3 1 . . . . . . . . . . . Hauler 3 | . . . . . . . . . 2 1 . . Recycler 1 | 1 . . . . . . . . . . . . Operator 1 | . . . . . . . . 1 . . . . Turret 2 | . . 2 . . . . . . . . . . Watcher 3 | . . . . . 1 . . . 2 . . . Swarmer 11 | . 3 3 . . 5 . . . . . . . Grunt 7 | . 2 2 . . 3 . . . . . . . Researcher 3 | . . . . . . . . 1 . 2 . . Sentry 2 | . . . . . 2 . . . . . . . Programmer 1 | . . . . . . . . . 1 . . . Subdweller 1 | . . 1 . . . . . . . . . . Best Kill Streak 8 | 4 3 6 . . 8 . 1 1 1 1 . . Combat Bots Only 8 | . 3 4 . . 8 . . . 1 . . . Max Kills in Single Turn 3 | 1 1 3 . . 3 . 1 1 1 1 . . Gunslinging . | . . . . . . . . . . . . . Exploded 3 | . . 3 . . 3 . . . . . . . Melee . | . . . . . . . . . . . . . Uniques/NPCs Destroyed . | . . . . . . . . . . . . . Combat | -11 -10 -10 -7 -7 -5 -4 -3 -3 -2 -2 -1 -1 -------- Run | Yrd Mat Sub Rec Scr Fac Fac Res Qua Res Tes Acc Com Hostile Shots Fired 585 | . 49 106 . . 32 3 8 51 92 57 159 28 Missed 255 | . 13 55 . . 14 2 6 22 48 30 58 7 Hits 330 | . 36 51 . . 18 1 2 29 44 27 101 21 Melee 4 | . . . . . . . . . 3 . . 1 Projectile 326 | . 36 51 . . 18 1 2 29 41 27 101 20 AOE 3 | . . . . . . . . . 2 1 . . Critical Strikes 12 | . 1 1 . . 1 . . . 3 1 3 2 Part Disruptions 1 | . . . . . . . . . . 1 . . Actively Blocked 1 | . . . . . . . . . . 1 . . Damage Taken 5604 | . 321 411 . . 347 18 10 416 1184 623 1719 555 Core 2443 | . 76 61 . . 18 . . 55 389 234 1180 430 Absorbed by Shields . | . . . . . . . . . . . . . Redirected to Shielding 158 | . . . . . . . . . . 120 38 . Regen/Repaired (Parts) 32 | . . . . . 21 11 . . . . . . Core Remaining (%) 82 | 100 . . . 45 98 100 . 95 . 57 . . Volleys Fired 85 | 12 20 25 . . 17 . . . . 7 4 . Largest 2 | 2 2 2 . . 1 . . . . 1 1 . Hottest 70 | 60 60 70 . . 39 . . . . 40 40 . Shots Fired 121 | 24 40 29 . . 17 . . . . 7 4 . Gun 69 | 24 40 5 . . . . . . . . . . Cannon 10 | . . . . . . . . . . 6 4 . Launcher 26 | . . 24 . . 2 . . . . . . . Special 16 | . . . . . 15 . . . . 1 . . Kinetic 33 | 12 20 1 . . . . . . . . . . Thermal 46 | 12 20 4 . . . . . . . 6 4 . Explosive 26 | . . 24 . . 2 . . . . . . . Electromagnetic . | . . . . . . . . . . . . . Impact 15 | . . . . . 15 . . . . . . . Robot Hit Streak 11 | 9 8 9 . . 7 . . . . 11 . . Robot Miss Streak 3 | 2 3 . . . 1 . . . . . . . Penetration Max . | . . . . . . . . . . . . . Secondary Targets . | . . . . . . . . . . . . . Shots Hit Robots 86 | 18 24 5 . . 13 . 4 6 7 9 . . Core Hits 64 | 6 11 27 . . 10 . 2 2 3 3 . . Critical Kills . | . . . . . . . . . . . . . Critical Parts Destroyed 5 | . . . . . 4 . . . . 1 . . Critical Strikes 7 | . . . . . 5 . . 1 . 1 . . Smash 6 | . . . . . 5 . . . . 1 . . Sever 1 | . . . . . . . . 1 . . . . Melee Attacks 79 | . . . . . . 4 10 23 12 17 12 1 Kinetic 13 | . . . . . . . . 1 12 . . . Impact 11 | . . . . . . . . . . 7 4 . Slashing 36 | . . . . . . 4 10 22 . . . . Piercing 19 | . . . . . . . . . . 10 8 1 Sneak Attacks 7 | . . . . . . . 3 . 3 1 . . Combat Hostiles . | . . . . . . . . . . . . . Follow-up Attacks 1 | . . . . . . . . . . 1 . . Damage Inflicted 3430 | 178 229 470 . . 1311 . 258 226 366 373 18 1 Guns 446 | 178 229 39 . . . . . . . . . . Cannons 106 | . . . . . . . . . . 106 . . Explosions 735 | . . 431 . . 304 . . . . . . . Melee 1117 | . . . . . . . 258 226 366 267 . . Ramming 19 | . . . . . . . . . . . 18 1 Kinetic 535 | 78 83 8 . . . . . . 366 . . . Thermal 383 | 100 146 31 . . . . . . . 106 . . Explosive 735 | . . 431 . . 304 . . . . . . . Electromagnetic . | . . . . . . . . . . . . . Impact 1172 | . . . . . 1007 . . . . 165 . . Slashing 484 | . . . . . . . 258 226 . . . . Piercing 102 | . . . . . . . . . . 102 . . Highest Corruption 6 | . . . . . . . . . 3 6 2 2 Average Corruption 2 | . . . . . . . . . 1 3 2 2 Corruption Purged . | . . . . . . . . . . . . . Corruption Blocked . | . . . . . . . . . . . . . Effects 8 | . . . . . . . . . . 5 . 3 Message Errors 4 | . . . . . . . . . . 3 . 1 Heat Flow Errors 1 | . . . . . . . . . . . . 1 Energy Discharges 1 | . . . . . . . . . . . . 1 Parts Rejected 1 | . . . . . . . . . . 1 . . Parts Fused 1 | . . . . . . . . . . 1 . . Overload Shots . | . . . . . . . . . . . . . Overflow Damage 468 | . . 1 . . 374 . 14 3 31 45 . . Projectiles 374 | . . . . . 374 . . . . . . . Explosions 1 | . . 1 . . . . . . . . . . Melee 93 | . . . . . . . 14 3 31 45 . . Knockbacks 4 | . . . . . 4 . . . . . . . Impact 4 | . . . . . 4 . . . . . . . Kinetic . | . . . . . . . . . . . . . Secondary . | . . . . . . . . . . . . . Self-Inflicted Damage 20 | . . 11 . . . . . . . . 9 . Shots 1 | . . 1 . . . . . . . . . . Rammed 2 | . . . . . . . . . . . 1 1 Targets Rammed 2 | . . . . . . . . . . . 1 1 Kicked . | . . . . . . . . . . . . . Crushed . | . . . . . . . . . . . . . Highest Temperature 506 | 40 85 16 . . 8 467 . 30 506 . . 222 Average Temperature 102 | 22 34 16 . . 8 242 . 20 115 . . 124 Received Heat Transfer 1049 | . 45 333 . . 99 . . 9 473 54 18 18 Effects 5 | . . . . . . 2 . . 3 . . . Energy Bleed 1 | . . . . . . . . . 1 . . . Interference 2 | . . . . . . . . . 2 . . . Matter Decay 1 | . . . . . . 1 . . . . . . Short Circuit 1 | . . . . . . 1 . . . . . . Siege Activations . | . . . . . . . . . . . . . Martial Activations . | . . . . . . . . . . . . . Shielding Activations . | . . . . . . . . . . . . . Robots Disrupted . | . . . . . . . . . . . . . Combat Hostiles . | . . . . . . . . . . . . . Robots Corrupted 4 | . . . . . 3 . . . . 1 . . Combat Hostiles 3 | . . . . . 3 . . . . . . . Parts Fried 3 | . . . . . 3 . . . . . . . Impact Corruptions 11 | . . . . . 10 . . . . 1 . . Robots Melted . | . . . . . . . . . . . . . Combat Hostiles . | . . . . . . . . . . . . . Parts Melted 1 | . 1 . . . . . . . . . . . Heat Transferred 773 | 225 325 75 . . . . . . . 148 . . Parts Sabotaged . | . . . . . . . . . . . . . Parts Stolen . | . . . . . . . . . . . . . Parts Stripped 33 | . . . . . . . . 10 23 . . . Power Chain Reactions . | . . . . . . . . . . . . . Alert | -11 -10 -10 -7 -7 -5 -4 -3 -3 -2 -2 -1 -1 ------- Run | Yrd Mat Sub Rec Scr Fac Fac Res Qua Res Tes Acc Com Maximum Alert Level 2 | . . . . . 1 . . . . 2 1 . Low Security (%) 92 | 100 100 . 100 . 98 100 100 100 100 70 17 100 Level 1 7 | . . . . . 1 . . . . 17 82 . Level 2 . | . . . . . . . . . . 11 . . Level 3 . | . . . . . . . . . . . . . Level 4 . | . . . . . . . . . . . . . Level 5 . | . . . . . . . . . . . . . High Security . | . . . . . . . . . . . . . Max Security . | . . . . . . . . . . . . . Peak Influence 532 | 5 91 . 67 . 206 78 19 139 87 532 327 60 Initial 312 | . . . 67 . . 78 . 2 78 15 312 25 Average 46 | 1 24 . 5 . 93 12 5 8 24 142 250 13 Influence Increases 2215 | 20 151 240 12 . 276 8 50 190 241 687 189 151 Destroy 0b10 Robot/C 640 | . 100 140 . . 200 . . 20 20 80 40 40 Destroy 0b10 Robot/NC 95 | 20 5 . . . 5 . 10 5 20 20 . 10 Destroy Leader 104 | . 20 10 . . 32 . . . 18 2 . 22 Allied During Kill 79 | . . . . . . . . . . 7 23 49 Successful Hack 43 | . 11 . 12 . . . . . 6 14 . . Disable Machine 165 | . . . . . 15 . 15 15 . 75 30 15 Destroy Structure 339 | . . . . . 24 8 10 30 12 234 21 . Partial Spotted 195 | . . . . . . . 15 30 75 45 15 15 Lose Combat Pursuer 555 | . 15 90 . . . . . 90 90 210 60 . Influence Decreases 2215 | 20 151 100 152 . 116 166 47 56 353 192 670 192 Entered New Map 459 | . . . 73 . . 82 2 3 61 12 210 16 Time Decay 1117 | 20 151 50 79 . 116 84 45 43 179 140 150 60 Lost Part 350 | . . 50 . . . . . 10 110 10 150 20 Lost Ally 289 | . . . . . . . . . 3 30 160 96 Squads Dispatched 22 | . 2 . . . 1 1 . 3 4 9 2 . Investigation 4 | . 1 . . . 1 . . . . 2 . . Extermination 7 | . . . . . . 1 . . 3 1 2 . Reinforcement 11 | . 1 . . . . . . 3 1 6 . . Assault . | . . . . . . . . . . . . . Garrison . | . . . . . . . . . . . . . Intercept . | . . . . . . . . . . . . . Searches Triggered . | . . . . . . . . . . . . . Construction Impeded 1 | . . . . . . . . . . 1 . . Haulers Reinforced . | . . . . . . . . . . . . . Active Scanning Responses . | . . . . . . . . . . . . . Cargo Convoy Interrupts . | . . . . . . . . . . . . . Stealth | -11 -10 -10 -7 -7 -5 -4 -3 -3 -2 -2 -1 -1 --------- Run | Yrd Mat Sub Rec Scr Fac Fac Res Qua Res Tes Acc Com Distress Signals 11 | . . . . . . . 1 1 1 4 2 2 Communications Jammed . | . . . . . . . . . . . . . Distress Signals . | . . . . . . . . . . . . . Times Spotted 156 | . 9 9 . . 10 7 3 20 30 45 11 12 Peak Tracking Total 29 | . 4 3 . . 5 7 4 10 20 29 8 10 Tactical Retreats 13 | . 1 3 . . . . . 2 2 3 2 . Traps | -11 -10 -10 -7 -7 -5 -4 -3 -3 -2 -2 -1 -1 ------- Run | Yrd Mat Sub Rec Scr Fac Fac Res Qua Res Tes Acc Com Traps Triggered 5 | . 1 . . . . . . . 3 . 1 . Indirectly . | . . . . . . . . . . . . . Trap Hack Attempts . | . . . . . . . . . . . . . Triggered . | . . . . . . . . . . . . . Disarmed . | . . . . . . . . . . . . . Reprogrammed . | . . . . . . . . . . . . . Reused . | . . . . . . . . . . . . . Traps Extracted . | . . . . . . . . . . . . . Installed . | . . . . . . . . . . . . . Triggered . | . . . . . . . . . . . . . Machines | -11 -10 -10 -7 -7 -5 -4 -3 -3 -2 -2 -1 -1 ---------- Run | Yrd Mat Sub Rec Scr Fac Fac Res Qua Res Tes Acc Com Machines Disabled 14 | . . 3 . . 1 . 1 1 . 5 2 1 Max in Single Turn 2 | . . 2 . . 1 . 1 1 . 1 1 1 Garrison Access 1 | . . . . . . . . 1 . . . . Machines Repaired . | . . . . . . . . . . . . . Machines Dismantled . | . . . . . . . . . . . . . Machines Sabotaged . | . . . . . . . . . . . . . Overloaded Fab Kills . | . . . . . . . . . . . . . Hacking | -11 -10 -10 -7 -7 -5 -4 -3 -3 -2 -2 -1 -1 --------- Run | Yrd Mat Sub Rec Scr Fac Fac Res Qua Res Tes Acc Com Machines Accessed 14 | . 1 . 5 . 1 . . 1 2 3 1 . Terminals 10 | . 1 . 3 . 1 . . . 2 3 . . Fabricators 1 | . . . . . . . . . . . 1 . Repair Stations . | . . . . . . . . . . . . . Recycling Units . | . . . . . . . . . . . . . Scanalyzers . | . . . . . . . . . . . . . Garrison Access 1 | . . . . . . . . 1 . . . . Total Hacks 62 | . 3 . 31 . 4 . . 1 8 14 1 . Successful 47 | . 3 . 29 . 3 . . 1 5 6 . . Failed 15 | . . . 2 . 1 . . . 3 8 1 . Catastrophic 1 | . . . . . . . . . . 1 . . Database Lockouts . | . . . . . . . . . . . . . Manual 26 | . 3 . 2 . 1 . . . 7 13 . . Terminals 35 | . 3 . 6 . 4 . . . 8 14 . . Fabricators 1 | . . . . . . . . . . . 1 . Repair Stations . | . . . . . . . . . . . . . Recycling Units . | . . . . . . . . . . . . . Scanalyzers . | . . . . . . . . . . . . . Garrison Access 1 | . . . . . . . . 1 . . . . Terminal Hacks 38 | . 2 . 28 . 2 . . . 3 3 . . Record 28 | . . . 26 . 2 . . . . . . . Robot Analysis 1 | . 1 . . . . . . . . . . . Open DSF 1 | . . . . . . . . . 1 . . . Branch Access Points 1 | . . . . . . . . . . 1 . . Terminal Index 1 | . . . . . . . . . . 1 . . Alert Level 2 | . . . 1 . . . . . 1 . . . Locate Traps 1 | . 1 . . . . . . . . . . . Zone Layout 2 | . . . . . . . . . 1 1 . . Release Object 1 | . . . 1 . . . . . . . . . Fabricator Hacks . | . . . . . . . . . . . . . Repair Station Hacks . | . . . . . . . . . . . . . Recycling Unit Hacks . | . . . . . . . . . . . . . Scanalyzer . | . . . . . . . . . . . . . Garrison Access Hacks 1 | . . . . . . . . 1 . . . . Seal Access 1 | . . . . . . . . 1 . . . . Unauthorized Hacks 8 | . 1 . 1 . 1 . . . 2 3 . . Terminals 8 | . 1 . 1 . 1 . . . 2 3 . . Assimilate 3 | . . . . . . . . . 1 2 . . Botnet 5 | . 1 . 1 . 1 . . . 1 1 . . Fabricators . | . . . . . . . . . . . . . Repair Stations . | . . . . . . . . . . . . . Recycling Units . | . . . . . . . . . . . . . Scanalyzers . | . . . . . . . . . . . . . Garrison Access . | . . . . . . . . . . . . . Data Cores Recovered . | . . . . . . . . . . . . . Used . | . . . . . . . . . . . . . Hacking Detections 9 | . 1 . 2 . 1 . . . 1 3 1 . Full Trace Events 4 | . . . 1 . 1 . . . . 2 . . Feedback Events . | . . . . . . . . . . . . . Feedback Blocked . | . . . . . . . . . . . . . Robot Schematics Acquired 1 | . . . . . . . . . . 1 . . Robots Built . | . . . . . . . . . . . . . Authchips . | . . . . . . . . . . . . . Time . | . . . . . . . . . . . . . Total Robot Build Rating . | . . . . . . . . . . . . . Part Schematics Acquired 9 | . . . . . . . . 1 . 8 . . Parts Built . | . . . . . . . . . . . . . Authchips . | . . . . . . . . . . . . . Time . | . . . . . . . . . . . . . Total Part Build Rating . | . . . . . . . . . . . . . Parts Repaired . | . . . . . . . . . . . . . Time . | . . . . . . . . . . . . . Parts Recycled . | . . . . . . . . . . . . . Recycled Matter . | . . . . . . . . . . . . . Retrieved Matter . | . . . . . . . . . . . . . Retrieved Components . | . . . . . . . . . . . . . Parts Scanalyzed . | . . . . . . . . . . . . . Part Schematics Acquired . | . . . . . . . . . . . . . Parts Damaged . | . . . . . . . . . . . . . Bothacking | -11 -10 -10 -7 -7 -5 -4 -3 -3 -2 -2 -1 -1 ------------ Run | Yrd Mat Sub Rec Scr Fac Fac Res Qua Res Tes Acc Com Used RIF Installer . | . . . . . . . . . . . . . Robots Hacked . | . . . . . . . . . . . . . Non-combat . | . . . . . . . . . . . . . Combat . | . . . . . . . . . . . . . Robot Hacks Applied . | . . . . . . . . . . . . . Relay Couplers Released . | . . . . . . . . . . . . . Fabnet Peak Effective % . | . . . . . . . . . . . . . Robots Rewired 1 | . . . . . . . . . . 1 . . Allies Hacked 1 | . . . . . . . . . . 1 . . Hacks Repelled . | . . . . . . . . . . . . . Allies | -11 -10 -10 -7 -7 -5 -4 -3 -3 -2 -2 -1 -1 -------- Run | Yrd Mat Sub Rec Scr Fac Fac Res Qua Res Tes Acc Com Total Allies 27 | . . . . . . . . . 1 2 8 16 Largest Group 15 | . . . . . . . . . 1 1 6 15 Highest-Rated Group 210 | . . . . . . . . . 10 118 84 210 Highest-Rated Ally 118 | . . . . . . . . . 10 118 15 15 Total Orders . | . . . . . . . . . . . . . Ally Attacks 182 | . . . . . . . . . . 10 25 147 Total Damage 5118 | . . . . . . . . . . 1323 768 3027 Kills 11 | . . . . . . . . . . 5 2 4 Allies Corrupted . | . . . . . . . . . . . . . Allies Melted . | . . . . . . . . . . . . . Intel | -11 -10 -10 -7 -7 -5 -4 -3 -3 -2 -2 -1 -1 ------- Run | Yrd Mat Sub Rec Scr Fac Fac Res Qua Res Tes Acc Com Active Infowar (turns) 2981 | 57 475 105 . . 164 538 105 256 559 284 301 137 Optics 1590 | . . . . . . . 53 256 559 284 301 137 Sensors 1079 | . . . . . . . 92 256 521 . 205 5 Terrain 1544 | . . . . . 164 538 105 245 492 . . . Seismic 637 | 57 475 105 . . . . . . . . . . Robot Analysis Total 1 | . 1 . . . . . . . . . . . Derelict Logs Recovered 1 | . . 1 . . . . . . . . . . Drone Launches . | . . . . . . . . . . . . . Drone Recoveries . | . . . . . . . . . . . . . Exploration | -11 -10 -10 -7 -7 -5 -4 -3 -3 -2 -2 -1 -1 ------------- Run | Yrd Mat Sub Rec Scr Fac Fac Res Qua Res Tes Acc Com Turns Passed 5574 | 162 475 169 998 1166 424 538 105 256 559 284 301 137 Spaces Moved 6327 | 75 233 67 690 927 272 432 340 605 1300 585 619 182 Core 84 | 5 . . . . . . . . . . 21 58 Treads 776 | 70 233 67 406 . . . . . . . . . Legs 1840 | . . . 284 927 272 357 . . . . . . Wheels . | . . . . . . . . . . . . . Hover . | . . . . . . . . . . . . . Flight 3627 | . . . . . . 75 340 605 1300 585 598 124 Fastest Speed 14 | 50 160 160 120 120 128 25 19 16 14 31 31 39 Average Speed 71 | 152 160 160 143 124 128 114 19 16 18 33 34 64 Slowest Speed 560 | 160 160 160 160 130 130 560 22 91 91 103 200 200 Overloaded Moves . | . . . . . . . . . . . . . Propulsion Burnouts . | . . . . . . . . . . . . . Robots Hopped 31 | . . . . . . 1 2 7 6 13 1 1 Potential Cave-ins . | . . . . . . . . . . . . . Cave-ins Triggered . | . . . . . . . . . . . . . Exploration Rate (%) 32 | 5 43 6 95 71 8 8 11 53 30 69 16 12 Regions Visited 12 Branch Regions 6 Pre-discovered Areas . | . . . . . . . . . . . . . Known Exits Taken 4 | . . . . . . . 1 1 1 1 . . Unknown Exits Taken 8 | 1 1 1 1 1 1 1 . . . . 1 . Scrap Searched 2 | . . . . 2 . . . . . . . . Spaces Dug 46 | . . . . . . 4 5 15 4 10 8 . Terrain Destroyed 102 | . . 45 . . 11 4 5 15 4 10 8 . Melee 45 | . . . . . . 4 5 15 4 9 8 . Projectile 2 | . . . . . 1 . . . . 1 . . AOE 55 | . . 45 . . 10 . . . . . . . Terrain Rammed . | . . . . . . . . . . . . . Walls Destroyed . | . . . . . . . . . . . . . Machines Disabled . | . . . . . . . . . . . . . Actions | -11 -10 -10 -7 -7 -5 -4 -3 -3 -2 -2 -1 -1 --------- Run | Yrd Mat Sub Rec Scr Fac Fac Res Qua Res Tes Acc Com Total 7117 | 98 300 99 698 947 332 469 360 718 1592 624 682 198 Wait 454 | . 42 4 1 1 14 6 3 78 266 2 33 4 Move 6256 | 74 232 66 689 926 271 429 335 591 1287 560 616 180 Hop 28 | . . . . . . 1 2 6 6 11 1 1 Pick Up 41 | 3 4 . 4 6 12 2 2 1 3 2 1 1 Fast Attach 51 | 8 . . . 3 3 11 3 2 6 6 4 5 Attach 38 | . . 1 3 1 7 1 3 2 8 4 5 3 Detach 21 | 1 . . 1 1 2 1 1 3 2 3 4 2 Swap 8 | . 1 3 . . 1 1 1 1 . . . . Drop 37 | . 1 . . 9 5 13 . 4 2 1 2 . Fire 85 | 12 20 25 . . 17 . . . . 7 4 . Melee 77 | . . . . . . 4 10 23 12 16 11 1 Ram 2 | . . . . . . . . . . . 1 1 Kick . | . . . . . . . . . . . . . Crush . | . . . . . . . . . . . . . Escape Stasis 7 | . . . . . . . . 7 . . . . Rewire 12 | . . . . . . . . . . 12 . . Trap . | . . . . . . . . . . . . . Miscellaneous . | . . . . . . . . . . . . . Route ------- -11/Scrapyard -10/Materials (discovered 3 exits: [*Mat] / [*Min] / [*Sub]) -10/Subcaves -7/Recycling (discovered 2 exits: *Fac / [*Scr]) -7/Scraptown (discovered 2 exits: *Fac x2) -5/Factory -4/Factory -3/Research -3/Quarantine -2/Research -2/Testing -1/Access -1/Command History --------- Turn | Location | Event 13 | -11/Scrapyard | Discovered new exit (range 16) 163 | -11/Scrapyard | Entered Materials 316 | -10/Materials | Build established: Mutant 431 | -10/Materials | Discovered new exit (range 8) 497 | -10/Materials | Discovered new exit (range 4) 620 | -10/Materials | Discovered new exit (range 5) 638 | -10/Materials | Entered Subcaves 650 | -10/Subcaves | Learned location of 1 exit from Materials 745 | -10/Subcaves | Discovered new exit (range 16) 772 | -10/Subcaves | Core integrity fell below 50% 804 | -10/Subcaves | Lost 5 parts (2p1n1u1w) 807 | -10/Subcaves | Entered Recycling 1493 | -7/Recycling | Discovered new exit (range 16) 1773 | -7/Recycling | Scanned before Scraplab entrance 1790 | -7/Recycling | Entered Scraplab 1803 | -7/Recycling | Discovered new exit (range 2) 1805 | -7/Recycling | Entered Scraptown 1855 | -7/Scraptown | Heard Great Nut preacher, LISTEN AND RECITE! 2101 | -7/Scraptown | Discovered new exit (range 11) 2173 | -7/Scraptown | Visited Comm Corps 2234 | -7/Scraptown | Visited Shadow of the Wyrm 2268 | -7/Scraptown | Visited UFD Registry 2268 | -7/Scraptown | Registered with UFD as "Cargodriver" 2322 | -7/Scraptown | Visited Cartography Club 2382 | -7/Scraptown | Visited Junk Cannon Lab 2398 | -7/Scraptown | Found Prototype Special Weapon 2435 | -7/Scraptown | Visited Supply Room 2491 | -7/Scraptown | Visited Science Testing Area 2511 | -7/Scraptown | Visited A0-MCA Data Center 2518 | -7/Scraptown | Given a B+ rating by A0-MCA 2522 | -7/Scraptown | Found A0-MCA's Component Scanner 2523 | -7/Scraptown | Identified Junk Cannon 2559 | -7/Scraptown | Visited Research Penetration Think Tank 2767 | -7/Scraptown | Visited Observation Area 2790 | -7/Scraptown | Visited Derelict Rescue Squad 2949 | -7/Scraptown | Found Scrap Suit 2968 | -7/Scraptown | Discovered new exit (range 3) 2971 | -7/Scraptown | Entered Factory 2971 | -5/Factory | Evolved 10 slots: Power x1, Propulsion x3, Utility x5, Weapon x1 3205 | -5/Factory | Destroyed 8 combat bots 3272 | -5/Factory | Build established: Bomber 3307 | -5/Factory | Discovered new exit (range 15) 3395 | -5/Factory | Entered another Factory area 3395 | -4/Factory | Evolved 2 slots: Propulsion x1, Utility x1 3839 | -4/Factory | Discovered new exit (range 12) 3844 | -4/Factory | Build established: Mutant 3933 | -4/Factory | Entered Research 3933 | -3/Research | Evolved 2 slots: Propulsion x2 3969 | -3/Research | Spotted B-86 Titan 4035 | -3/Research | Discovered new exit (range 4) 4036 | -3/Research | Identified exit to Quarantine 4038 | -3/Research | Entered Quarantine 4165 | -3/Quarantine | Build established: Scout 4264 | -3/Quarantine | Scanned by Researcher 4267 | -3/Quarantine | Discovered new exit (range 19) 4270 | -3/Quarantine | Found Alien Artifact 4277 | -3/Quarantine | Found Alien Impact Weapon 4277 | -3/Quarantine | Identified Core Stripper 4294 | -3/Quarantine | Identified exit to Research 4294 | -3/Quarantine | Entered Research 4294 | -2/Research | Evolved 2 slots: Propulsion x1, Utility x1 4294 | -2/Research | Identified Core Reset Matrix 4294 | -2/Research | Used Core Reset Matrix 4535 | -2/Research | Lost 4 parts (1p3n) 4811 | -2/Research | Spotted B-90 Cyclops 4816 | -2/Research | Spotted B-90 Cyclops 4841 | -2/Research | Discovered new exit (range 10) 4845 | -2/Research | Identified exit to Testing 4853 | -2/Research | Entered Testing 4881 | -2/Testing | Lost 10 parts (2p4n3u1w) 4917 | -2/Testing | Found 2N-1CE's Frost Array 4973 | -2/Testing | Spotted PD-8582Q71J0P 5082 | -2/Testing | Rewired PD-K1EXBDKL5D 5092 | -2/Testing | Spotted Alpha 7 5097 | -2/Testing | Spotted Striker 5135 | -2/Testing | Discovered new exit (range 9) 5137 | -2/Testing | Identified exit to Access 5137 | -2/Testing | Entered Access 5137 | -1/Access | Evolved 2 slots: Utility x2 5395 | -1/Access | Spotted B-99 Colossus 5397 | -1/Access | Spotted B-99 Colossus 5413 | -1/Access | Core integrity fell below 50% 5419 | -1/Access | Emitted hypermatrix ping 5424 | -1/Access | Assembled emerged from beneath the floor 5428 | -1/Access | Discovered new exit (range 4) 5438 | -1/Access | Entered Command 5439 | -1/Command | Emitted hypermatrix ping 5444 | -1/Command | Assembled emerged from beneath the floor 5444 | -1/Command | Lost 15 parts (1p4n9u1w) 5467 | -1/Command | Lost 8 allies 5486 | -1/Command | Spotted B-99 Colossus 5491 | -1/Command | Assembled emerged from beneath the floor 5503 | -1/Command | Spotted M Guard 5503 | -1/Command | Spotted M Guard 5503 | -1/Command | Spotted Combat Programmer 5512 | -1/Command | Allies destroyed B-99 Colossus 5526 | -1/Command | Spotted B-99 Colossus 5548 | -1/Command | Spotted Alpha 7 5548 | -1/Command | Spotted Alpha 7 5548 | -1/Command | Spotted Striker 5548 | -1/Command | Spotted Striker 5548 | -1/Command | Spotted Executioner 5548 | -1/Command | Spotted Executioner 5548 | -1/Command | Spotted Executioner 5548 | -1/Command | Spotted Executioner 5549 | -1/Command | Spotted B-99 Colossus 5551 | -1/Command | Core integrity fell below 20% 5552 | -1/Command | Allies destroyed B-99 Colossus 5575 | -1/Command | Destroyed by Striker with Plasma Lance Last Messages --------------- 05550_ Knocked back. 05550_ Field Propulsion Drive destroyed. 05550_ Knocked back. 05550_ Penetrated by Slug. 05552_ B-99 Colossus critical meltdown. 05552_ Weapon Mount destroyed. 05553_ Penetrated by Slug. 05554_ Slug penetrates Striker. 05554_ Slug penetrates Wall. 05556_ as-07089 suffers critical hit (Destroy). 05556_ as-07089 destroyed. 05556_ Terminal disabled. 05564_ TF Node disabled. 05564_ Adv. Sensor Array tumbles out of TF Node. 05564_ Adv. Signal Interpreter tumbles out of TF Node. 05568_ Acquired Adv. Signal Interpreter. 05570_ Acquired Adv. Sensor Array. 05571_ System corrupted: Energy discharge (-20). 05574_ Slammed into R-10 Processor. Map ----- +----------------------------------------------------+ | | | | | | | ?????????????????????????????????????????????????? | | ?????????????????????????????????????????????????? | | ?????????????????????????????????????????????????? | | ?????????????????????????????????????????????????? | | ?????????????????????????????????????????????????? | | ?????????????????????????????????????????????????? | | ?????????????????????????????????????????????????? | | ?????????????????????????????????????????????????? | | ?????????????????????????????????????????????????? | | ??????????????????###########????????????????????? | | ??????????????????# [ #????????????????????? | | ??????????????????# #????????????????????? | | ??????????????????# #????????????????????? | | ??????????????????# "" "" #????????????????????? | | ??????????????????# ""R"" #????????????????????? | | ??????????????????# """" #????????????????????? | | ??????????????????# * ??????????????????????? | | ???????????????????? ????????????????????????? | | ???????????????????###+##????????????????????????? | | ???????????????????# #????????????????????????? | | ???????????????????# #????????????????????????? | | ???????????????????# ######### #???????? | | ???????????????????# RK@R #???????? | | ???????????????????## ########## #???????? | | ????????????????????# #?????????????????????????? | | ????????????????????# #?????????????????????????? | | ????????????????????# #?????????????????????????? | | ????????????????????# #?????????????????????????? | | ????????????????????# #?????????????????????????? | | ????????????????????# #?????????????????????????? | | ????????????????????# #?????????????????????????? | | ????????????????????# #?????????????????????????? | | ????????????????????# #?????????????????????????? | | ????????????????????# ###???????????????????????? | | ????????????????????# #"############????????????? | | ????????????????????# % #????????????? | | ????????????????????# % #????????????? | | ????????????????????# #????##?#?#?? | | ????????????????????# #??## # # # " | | ????????????????????# !=% ### | | ????????????????????# == /^ | | ????????????????????# == / | | ????????????????????# % / ^ ^ | | ????????????????????# / | | ????????????????????# =### | | ????????????????????# #???# # # # # | | ????????????????????# #?????#?#?#??? | +----------------------------------------------------+ Best States ------------- Heat Dissipation 149 Energy Generation 37 Energy Capacity 350 Matter Stores 300 Matter Capacity 300 Sight Range 23 Robot Scan Range 16 Terrain Scan Range 20 Terrain Scan Density 10 Armor Coverage 300 Propulsion Shielding 90 Evasion (%) 67 Targeting Accuracy 20 Melee Accuracy 14 Recoil Reduction 2 Offensive Hacking 10 Defensive Hacking 20 Item Schematics ----------------- Enh. Multireflex Exoskeleton | -2/Testing | Archive Diametric Drive | -2/Testing | Archive Adv. KE Penetrator | -2/Testing | Archive Adv. Thermal Defense Suite | -2/Testing | Archive Hvy. Tesla Rifle | -2/Testing | Archive Exp. Signal Interpreter | -2/Testing | Archive Spectral Analyzer | -2/Testing | Archive Cld. Phase Gun | -2/Testing | Archive Robot Schematics ------------------ G-67 Veteran | -2/Testing | Archive Fabricated ------------ Nothing Repaired ---------- Nothing Alien Tech Used ----------------- Core Stripper Core Reset Matrix Achievements -------------- Alien Roots Sunderer Challenges ------------ None Game ------ Seed AntigravHeatWeb Manual? 0 Play Time 01:59:11 Cumulative 87.4 hours Start 2025.08.04 @ 10:42:24 End 2025.08.04 @ 20:02:20 Sessions 3 Manual Loads 0 Difficulty Rogue Special Mode None Game No. 114 Rogue 114 Adventurer 0 Explorer 0 Win Type - Total 1 Types 1/0/0/0/0/0/0/0/0/0 Lore% 46 Gallery% 44 Achievement% 41 Wizard Run 0 Options --------- Layout 2 ASCII 0 Keyboard 1 Movement Numpad Keybinds 0 Fullscreen 1 Font 32/Tamsyn Map View 50x44 Zoom Use 0% Tactical HUD 1 Map Filters NONE Filters NONE Steam 1 RUN: f21383ea-e33a-4a9e-a6d2-fae9c531315c